fUSD/lending_fUSD_20260516
["ID","MTS","AMOUNT","RATE_DAILY","PERIOD"]
[422359289,1778871039000,-150.0,0.00013834,2]
[422359218,1778871039000,-500.0,0.00013698,2]
[422359285,1778871039000,-150.0,0.00013821,2]
[422359287,1778871039000,-319.73841152,0.00013821,2]
[422359220,1778871039000,-200.0,0.00013699,2]
[422359232,1778871039000,-163.19,0.000137,2]
[422359234,1778871039000,-1295.3949179,0.00013714,2]
[422359230,1778871039000,-319.73841152,0.000137,2]
[422359236,1778871039000,-319.73841152,0.00013715,2]
[422359238,1778871039000,-150.0,0.00013718,2]
[422359248,1778871039000,-150.0,0.00013731,2]
[422359253,1778871039000,-319.73841152,0.00013745,2]
[422359240,1778871039000,-150.0,0.00013718,2]
[422359246,1778871039000,-319.73841152,0.0001373,2]
[422359244,1778871039000,-150.0,0.00013721,2]
[422359242,1778871039000,-150.0,0.00013718,2]
[422359255,1778871039000,-1091.93071344,0.00013747,2]
[422359250,1778871039000,-150.0,0.00013731,2]
[422359259,1778871039000,-150.0,0.00013754,2]
[422359257,1778871039000,-13895.23466663,0.00013747,2]
[422359281,1778871039000,-150.0,0.00013812,2]
[422359271,1778871039000,-150.0,0.00013787,2]
[422359267,1778871039000,-319.73841152,0.00013775,2]
[422359265,1778871039000,-150.0,0.00013771,2]
[422359269,1778871039000,-150.0,0.00013776,2]
[422359279,1778871039000,-201.16,0.00013809,2]
[422359283,1778871039000,-150.0,0.00013812,2]
[422359277,1778871039000,-319.73841152,0.00013806,2]
[422359273,1778871039000,-319.73841152,0.0001379,2]
[422359263,1778871039000,-150.0,0.00013771,2]
[422359261,1778871039000,-319.73841152,0.0001376,2]
[422359275,1778871039000,-500.0,0.00013791,2]
[422359372,1778871040000,-150.0,0.00014136,2]
[422359375,1778871040000,-150.0,0.00014154,2]
[422359373,1778871040000,-150.0,0.00014136,2]
[422359374,1778871040000,-319.73841152,0.00014139,2]
[422359368,1778871040000,-166.66,0.0001411,2]
[422359365,1778871040000,-150.0,0.00014095,2]
[422359370,1778871040000,-150.0,0.00014122,2]
[422359367,1778871040000,-319.73841152,0.00014108,2]
[422359369,1778871040000,-150.0,0.0001412,2]
[422359371,1778871040000,-319.73841152,0.00014123,2]
[422359376,1778871040000,-319.73841152,0.00014154,2]
[422359366,1778871040000,-1293.0,0.00014106,2]
[422359378,1778871040000,-2000.0,0.00014173,2]
[422359391,1778871040000,-150.0,0.00014217,2]
[422359385,1778871040000,-150.0,0.00014187,2]
[422359377,1778871040000,-319.73841152,0.00014169,2]
[422359379,1778871040000,-150.0,0.00014176,2]
[422359382,1778871040000,-150.0,0.00014179,2]
[422359380,1778871040000,-150.0,0.00014176,2]
[422359384,1778871040000,-319.73841152,0.00014184,2]
[422359383,1778871040000,-150.0,0.00014179,2]
[422359386,1778871040000,-319.73841152,0.00014199,2]
[422359388,1778871040000,-13895.23466663,0.00014208,2]
[422359387,1778871040000,-1091.93071344,0.00014208,2]
[422359389,1778871040000,-319.73841152,0.00014214,2]
[422359392,1778871040000,-150.0,0.0001422,2]
[422359364,1778871040000,-150.0,0.00014095,2]
[422359381,1778871040000,-150.0,0.00014179,2]
[422359363,1778871040000,-319.73841152,0.00014093,2]
[422359348,1778871040000,-150.0,0.00014021,2]
[422359361,1778871040000,-319.73841152,0.00014078,2]
[422359393,1778871040000,-319.73841152,0.00014229,2]
[422359332,1778871040000,-13895.23466663,0.00013978,2]
[422359331,1778871040000,-1091.93071344,0.00013978,2]
[422359336,1778871040000,-2730.1767011,0.0001399,2]
[422359333,1778871040000,-150.0,0.00013987,2]
[422359335,1778871040000,-319.73841152,0.00013987,2]
[422359334,1778871040000,-150.0,0.00013987,2]
[422359338,1778871040000,-150.0,0.00014006,2]
[422359340,1778871040000,-150.0,0.00014014,2]
[422359339,1778871040000,-1295.3949179,0.00014011,2]
[422359337,1778871040000,-319.73841152,0.00014002,2]
[422359341,1778871040000,-150.0,0.00014014,2]
[422359346,1778871040000,-500.0,0.00014018,2]
[422359362,1778871040000,-150.0,0.00014087,2]
[422359342,1778871040000,-319.73841152,0.00014017,2]
[422359343,1778871040000,-500.0,0.00014018,2]
[422359350,1778871040000,-319.73841152,0.00014033,2]
[422359347,1778871040000,-500.0,0.00014018,2]
[422359351,1778871040000,-319.73841152,0.00014048,2]
[422359353,1778871040000,-150.0,0.00014055,2]
[422359355,1778871040000,-319.73841152,0.00014063,2]
[422359352,1778871040000,-150.0,0.00014054,2]
[422359357,1778871040000,-150.0,0.00014064,2]
[422359354,1778871040000,-150.0,0.00014055,2]
[422359359,1778871040000,-500.0,0.00014065,2]
[422359358,1778871040000,-150.0,0.00014064,2]
[422359356,1778871040000,-150.0,0.00014064,2]
[422359360,1778871040000,-420.0,0.00014066,2]
[422359344,1778871040000,-500.0,0.00014018,2]
[422359330,1778871040000,-150.0,0.00013974,2]
[422359395,1778871040000,-319.73841152,0.00014245,2]
[422359394,1778871040000,-150.0,0.00014237,2]
[422359431,1778871040000,-150.0,0.00014419,2]
[422359426,1778871040000,-319.73841152,0.00014396,2]
[422359435,1778871040000,-1091.93071344,0.00014439,2]
[422359434,1778871040000,-319.73841152,0.00014426,2]
[422359433,1778871040000,-150.0,0.0001442,2]
[422359432,1778871040000,-150.0,0.00014419,2]
[422359430,1778871040000,-319.73841152,0.00014411,2]
[422359436,1778871040000,-13895.23466663,0.00014439,2]
[422359437,1778871040000,-319.73841152,0.00014441,2]
[422359438,1778871040000,-150.0,0.00014453,2]
[422359440,1778871040000,-150.0,0.0001446,2]
[422359439,1778871040000,-319.73841152,0.00014456,2]
[422359446,1778871040000,-150.0,0.00014487,2]
[422359429,1778871040000,-150.0,0.0001441,2]
[422359442,1778871040000,-500.0,0.00014466,2]
[422359445,1778871040000,-150.0,0.00014487,2]
[422359443,1778871040000,-150.0,0.00014468,2]
[422359447,1778871040000,-319.73841152,0.00014487,2]
[422359444,1778871040000,-319.73841152,0.00014472,2]
[422359448,1778871040000,-150.0,0.000145,2]
[422359450,1778871040000,-319.73841152,0.00014502,2]
[422359449,1778871040000,-150.0,0.000145,2]
[422359451,1778871040000,-5000.0,0.0001451,2]
[422359453,1778871040000,-150.0,0.0001452,2]
[422359454,1778871040000,-150.0,0.00014525,2]
[422359452,1778871040000,-319.73841152,0.00014517,2]
[422359456,1778871040000,-150.0,0.00014525,2]
[422359396,1778871040000,-166.66,0.00014247,2]
[422359441,1778871040000,-150.0,0.0001446,2]
[422359428,1778871040000,-150.0,0.0001441,2]
[422359455,1778871040000,-150.0,0.00014525,2]
[422359424,1778871040000,-166.66,0.00014384,2]
[422359427,1778871040000,-150.0,0.0001441,2]
[422359390,1778871040000,-150.0,0.00014217,2]
[422359398,1778871040000,-150.0,0.00014257,2]
[422359401,1778871040000,-319.73841152,0.00014275,2]
[422359400,1778871040000,-319.73841152,0.0001426,2]
[422359399,1778871040000,-150.0,0.00014257,2]
[422359402,1778871040000,-150.0,0.00014287,2]
[422359403,1778871040000,-319.73841152,0.0001429,2]
[422359407,1778871040000,-150.0,0.00014298,2]
[422359404,1778871040000,-150.0,0.00014295,2]
[422359410,1778871040000,-1295.3949179,0.00014307,2]
[422359408,1778871040000,-150.0,0.00014298,2]
[422359406,1778871040000,-150.0,0.00014295,2]
[422359405,1778871040000,-150.0,0.00014295,2]
[422359397,1778871040000,-150.0,0.00014254,2]
[422359411,1778871040000,-150.0,0.0001432,2]
[422359425,1778871040000,-150.0,0.00014387,2]
[422359423,1778871040000,-319.73841152,0.00014381,2]
[422359418,1778871040000,-150.0,0.00014352,2]
[422359422,1778871040000,-150.0,0.00014379,2]
[422359409,1778871040000,-319.73841152,0.00014305,2]
[422359420,1778871040000,-319.73841152,0.00014366,2]
[422359421,1778871040000,-150.0,0.00014379,2]
[422359415,1778871040000,-150.0,0.00014338,2]
[422359419,1778871040000,-150.0,0.00014354,2]
[422359417,1778871040000,-319.73841152,0.00014351,2]
[422359414,1778871040000,-150.0,0.00014338,2]
[422359413,1778871040000,-319.73841152,0.00014335,2]
[422359412,1778871040000,-319.73841152,0.0001432,2]
[422359416,1778871040000,-500.0,0.00014339,2]
[422359520,1778871041000,-186.80573571,0.00014744,2]
[422359516,1778871041000,-150.0,0.00014743,2]
[422359511,1778871041000,-230.77568616,0.00014724,2]
[422359514,1778871041000,-319.73841152,0.00014729,2]
[422359505,1778871041000,-319.73841152,0.00014714,2]
[422359499,1778871041000,-319.73841152,0.00014699,2]
[422359501,1778871041000,-150.0,0.00014703,2]
[422359512,1778871041000,-5000.0,0.00014724,2]
[422359503,1778871041000,-150.0,0.00014703,2]
[422359507,1778871041000,-150.0,0.0001472,2]
[422359497,1778871041000,-150.0,0.00014698,2]
[422359509,1778871041000,-191.26378019,0.00014724,2]
[422359518,1778871041000,-150.0,0.00014743,2]
[422359532,1778871041000,-500.0,0.00014755,2]
[422359535,1778871041000,-150.0,0.00014756,2]
[422359537,1778871041000,-200.0,0.00014758,2]
[422359528,1778871041000,-319.73841152,0.00014744,2]
[422359522,1778871041000,-367.18619809,0.00014744,2]
[422359524,1778871041000,-1134.9893546,0.00014744,2]
[422359536,1778871041000,-150.0,0.00014756,2]
[422359530,1778871041000,-150.0,0.00014753,2]
[422359526,1778871041000,-330.50441725,0.00014744,2]
[422359531,1778871041000,-191.26378013,0.00014753,2]
[422359539,1778871041000,-319.73841152,0.00014774,2]
[422359538,1778871041000,-319.73841152,0.00014759,2]
[422359541,1778871041000,-150.0,0.00014784,2]
[422359495,1778871041000,-150.0,0.00014687,2]
[422359534,1778871041000,-150.0,0.00014756,2]
[422359493,1778871041000,-319.73841152,0.00014684,2]
[422359470,1778871041000,-1295.3949179,0.00014604,2]
[422359482,1778871041000,-319.73841152,0.00014653,2]
[422359457,1778871041000,-319.73841152,0.00014532,2]
[422359458,1778871041000,-150.0,0.00014541,2]
[422359461,1778871041000,-150.0,0.00014553,2]
[422359459,1778871041000,-150.0,0.00014541,2]
[422359460,1778871041000,-319.73841152,0.00014547,2]
[422359463,1778871041000,-350.0,0.00014569,2]
[422359464,1778871041000,-319.73841152,0.00014578,2]
[422359462,1778871041000,-319.73841152,0.00014562,2]
[422359467,1778871041000,-150.0,0.00014583,2]
[422359466,1778871041000,-150.0,0.00014581,2]
[422359472,1778871041000,-500.0,0.00014613,2]
[422359465,1778871041000,-150.0,0.00014581,2]
[422359471,1778871041000,-319.73841152,0.00014608,2]
[422359491,1778871041000,-13895.23466663,0.00014669,2]
[422359468,1778871041000,-150.0,0.00014587,2]
[422359473,1778871041000,-150.0,0.0001462,2]
[422359476,1778871041000,-319.73841152,0.00014623,2]
[422359474,1778871041000,-150.0,0.00014622,2]
[422359475,1778871041000,-150.0,0.00014622,2]
[422359477,1778871041000,-319.73841152,0.00014638,2]
[422359480,1778871041000,-150.0,0.0001464,2]
[422359478,1778871041000,-150.0,0.0001464,2]
[422359488,1778871041000,-319.73841152,0.00014668,2]
[422359481,1778871041000,-150.0,0.00014653,2]
[422359489,1778871041000,-1091.93071344,0.00014669,2]
[422359479,1778871041000,-150.0,0.0001464,2]
[422359486,1778871041000,-150.0,0.00014662,2]
[422359484,1778871041000,-150.0,0.00014662,2]
[422359469,1778871041000,-319.73841152,0.00014593,2]
[422359544,1778871041000,-319.73841152,0.0001479,2]
[422359540,1778871041000,-191.26378013,0.00014783,2]
[422359546,1778871041000,-191.26378013,0.00014812,2]
[422359576,1778871041000,-500.0,0.00014823,2]
[422359582,1778871041000,-4420.698843,0.00014824,2]
[422359583,1778871041000,-6161.7464718,0.00014824,2]
[422359589,1778871041000,-200.0,0.00014841,2]
[422359581,1778871041000,-104129.1717158,0.00014824,2]
[422359585,1778871041000,-150.0,0.00014824,2]
[422359580,1778871041000,-22577.3451731,0.00014824,2]
[422359579,1778871041000,-17565.8358038,0.00014824,2]
[422359588,1778871041000,-172.838,0.0001484,2]
[422359578,1778871041000,-381541.2177602,0.00014824,2]
[422359587,1778871041000,-570.586,0.0001484,2]
[422359586,1778871041000,-319.73841152,0.00014835,2]
[422359584,1778871041000,-150.0,0.00014824,2]
[422359575,1778871041000,-500.0,0.00014823,2]
[422359591,1778871041000,-500.0,0.00014849,2]
[422359597,1778871041000,-319.73841152,0.0001485,2]
[422359593,1778871041000,-500.0,0.00014849,2]
[422359592,1778871041000,-549.88,0.00014849,2]
[422359594,1778871041000,-500.0,0.00014849,2]
[422359599,1778871041000,-150.0,0.00014865,2]
[422359596,1778871041000,-29964.16918207,0.0001485,2]
[422359595,1778871041000,-500.0,0.00014849,2]
[422359598,1778871041000,-150.0,0.00014853,2]
[422359600,1778871041000,-150.0,0.00014865,2]
[422359601,1778871041000,-319.73841152,0.00014865,2]
[422359602,1778871041000,-191.26378013,0.00014871,2]
[422359603,1778871041000,-150.0,0.00014871,2]
[422359604,1778871041000,-150.0,0.00014871,2]
[422359590,1778871041000,-191.26378013,0.00014841,2]
[422359577,1778871041000,-500.0,0.00014823,2]
[422359543,1778871041000,-150.0,0.00014786,2]
[422359572,1778871041000,-500.0,0.00014823,2]
[422359571,1778871041000,-500.0,0.00014823,2]
[422359542,1778871041000,-150.0,0.00014784,2]
[422359545,1778871041000,-319.73841152,0.00014805,2]
[422359547,1778871041000,-150.0,0.00014813,2]
[422359549,1778871041000,-150.0,0.0001482,2]
[422359548,1778871041000,-305.0837372,0.00014814,2]
[422359550,1778871041000,-319.73841152,0.0001482,2]
[422359552,1778871041000,-500.0,0.00014823,2]
[422359553,1778871041000,-500.0,0.00014823,2]
[422359555,1778871041000,-500.0,0.00014823,2]
[422359558,1778871041000,-603.34873986,0.00014823,2]
[422359561,1778871041000,-746.33,0.00014823,2]
[422359562,1778871041000,-746.33,0.00014823,2]
[422359557,1778871041000,-500.0,0.00014823,2]
[422359551,1778871041000,-500.0,0.00014823,2]
[422359560,1778871041000,-500.0,0.00014823,2]
[422359556,1778871041000,-537.71298597,0.00014823,2]
[422359574,1778871041000,-500.0,0.00014823,2]
[422359573,1778871041000,-502.56578458,0.00014823,2]
[422359570,1778871041000,-500.0,0.00014823,2]
[422359566,1778871041000,-500.0,0.00014823,2]
[422359567,1778871041000,-500.0,0.00014823,2]
[422359568,1778871041000,-500.0,0.00014823,2]
[422359569,1778871041000,-500.0,0.00014823,2]
[422359564,1778871041000,-549.88,0.00014823,2]
[422359563,1778871041000,-549.88,0.00014823,2]
[422359559,1778871041000,-500.0,0.00014823,2]
[422359554,1778871041000,-500.0,0.00014823,2]
[422359565,1778871041000,-500.0,0.00014823,2]
[422359646,1778871042000,-319.73841152,0.00014956,2]
[422359645,1778871042000,-150.0,0.00014953,2]
[422359644,1778871042000,-150.0,0.00014946,2]
[422359648,1778871042000,-500.0,0.00014967,2]
[422359642,1778871042000,-319.73841152,0.00014941,2]
[422359638,1778871042000,-319.73841152,0.00014911,2]
[422359641,1778871042000,-150.0,0.00014929,2]
[422359649,1778871042000,-500.0,0.00014967,2]
[422359647,1778871042000,-320.0,0.00014959,2]
[422359640,1778871042000,-319.73841152,0.00014926,2]
[422359650,1778871042000,-500.0,0.00014967,2]
[422359643,1778871042000,-150.0,0.00014946,2]
[422359651,1778871042000,-500.0,0.00014967,2]
[422359667,1778871042000,-500.0,0.00014967,2]
[422359653,1778871042000,-500.0,0.00014967,2]
[422359663,1778871042000,-500.0,0.00014967,2]
[422359657,1778871042000,-1106.42,0.00014967,2]
[422359654,1778871042000,-500.0,0.00014967,2]
[422359658,1778871042000,-500.0,0.00014967,2]
[422359659,1778871042000,-500.0,0.00014967,2]
[422359662,1778871042000,-500.0,0.00014967,2]
[422359656,1778871042000,-1106.42,0.00014967,2]
[422359655,1778871042000,-190.94577915,0.00014967,2]
[422359661,1778871042000,-1102.82,0.00014967,2]
[422359660,1778871042000,-1102.82,0.00014967,2]
[422359665,1778871042000,-500.0,0.00014967,2]
[422359664,1778871042000,-500.0,0.00014967,2]
[422359639,1778871042000,-150.0,0.0001492,2]
[422359652,1778871042000,-500.0,0.00014967,2]
[422359636,1778871042000,-150.0,0.00014905,2]
[422359618,1778871042000,-25000.0,0.00014891,3]
[422359633,1778871042000,-735.48096882,0.000149,2]
[422359605,1778871042000,-150.0,0.00014871,2]
[422359668,1778871042000,-500.0,0.00014967,2]
[422359606,1778871042000,-200.0,0.00014879,2]
[422359608,1778871042000,-150.0,0.00014886,2]
[422359609,1778871042000,-500.0,0.00014887,2]
[422359610,1778871042000,-500.0,0.0001489,2]
[422359612,1778871042000,-1106.42,0.0001489,2]
[422359611,1778871042000,-500.0,0.0001489,2]
[422359614,1778871042000,-1102.82,0.0001489,2]
[422359624,1778871042000,-10000.0,0.000149,2]
[422359613,1778871042000,-500.0,0.0001489,2]
[422359617,1778871042000,-500.0,0.0001489,2]
[422359616,1778871042000,-500.0,0.0001489,2]
[422359615,1778871042000,-500.0,0.0001489,2]
[422359619,1778871042000,-319.73841152,0.00014895,2]
[422359623,1778871042000,-25000.0,0.000149,3]
[422359620,1778871042000,-500.0,0.00014898,2]
[422359621,1778871042000,-500.0,0.00014898,2]
[422359622,1778871042000,-500.0,0.00014898,2]
[422359625,1778871042000,-17061.47664226,0.000149,3]
[422359626,1778871042000,-1722.0,0.000149,5]
[422359627,1778871042000,-153.53198692,0.000149,2]
[422359629,1778871042000,-191.26378013,0.000149,2]
[422359630,1778871042000,-13895.23466663,0.000149,2]
[422359628,1778871042000,-1091.93071344,0.000149,2]
[422359632,1778871042000,-1177.10529499,0.000149,2]
[422359631,1778871042000,-9233.85867884,0.000149,2]
[422359634,1778871042000,-1295.3949179,0.000149,2]
[422359635,1778871042000,-350.0,0.00014902,2]
[422359637,1778871042000,-150.0,0.00014905,2]
[422359607,1778871042000,-319.73841152,0.0001488,2]
[422359669,1778871042000,-500.0,0.00014967,2]
[422359676,1778871042000,-1000.0,0.0001497,2]
[422359704,1778871042000,-1102.82,0.00014998,2]
[422359705,1778871042000,-500.0,0.00014998,2]
[422359706,1778871042000,-544.8115812,0.00014998,2]
[422359708,1778871042000,-500.0,0.00014998,2]
[422359710,1778871042000,-500.0,0.00014998,2]
[422359707,1778871042000,-500.0,0.00014998,2]
[422359709,1778871042000,-549.88,0.00014998,2]
[422359711,1778871042000,-500.0,0.00014998,2]
[422359714,1778871042000,-2152.0,0.00014999,5]
[422359713,1778871042000,-500.0,0.00014998,2]
[422359712,1778871042000,-276.56058421,0.00014998,2]
[422359715,1778871042000,-201.38691855,0.00014999,5]
[422359716,1778871042000,-1601.76405065,0.00014999,5]
[422359703,1778871042000,-500.0,0.00014998,2]
[422359718,1778871042000,-500.0,0.00014999,2]
[422359720,1778871042000,-500.0,0.00014999,2]
[422359724,1778871042000,-244.36367736,0.00014999,2]
[422359721,1778871042000,-500.0,0.00014999,2]
[422359725,1778871042000,-500.0,0.00014999,2]
[422359727,1778871042000,-500.0,0.00014999,2]
[422359722,1778871042000,-500.0,0.00014999,2]
[422359717,1778871042000,-500.0,0.00014999,2]
[422359723,1778871042000,-500.0,0.00014999,2]
[422359728,1778871042000,-401.0210076,0.00014999,2]
[422359730,1778871042000,-1106.42,0.00014999,2]
[422359731,1778871042000,-1106.42,0.00014999,2]
[422359732,1778871042000,-1106.42,0.00014999,2]
[422359666,1778871042000,-500.0,0.00014967,2]
[422359719,1778871042000,-500.0,0.00014999,2]
[422359700,1778871042000,-500.0,0.00014998,2]
[422359733,1778871042000,-1106.42,0.00014999,2]
[422359699,1778871042000,-151.0,0.00014997,2]
[422359701,1778871042000,-500.0,0.00014998,2]
[422359672,1778871042000,-746.33,0.00014969,2]
[422359675,1778871042000,-1000.0,0.0001497,2]
[422359674,1778871042000,-500.0,0.0001497,2]
[422359670,1778871042000,-500.0,0.00014969,2]
[422359671,1778871042000,-640.39212556,0.00014969,2]
[422359677,1778871042000,-500.0,0.0001497,2]
[422359678,1778871042000,-1000.0,0.0001497,2]
[422359680,1778871042000,-1000.0,0.0001497,2]
[422359679,1778871042000,-500.0,0.0001497,2]
[422359682,1778871042000,-1000.0,0.0001497,2]
[422359681,1778871042000,-500.0,0.0001497,2]
[422359685,1778871042000,-500.0,0.0001497,2]
[422359683,1778871042000,-500.0,0.0001497,2]
[422359673,1778871042000,-500.0,0.00014969,2]
[422359686,1778871042000,-500.0,0.0001497,2]
[422359697,1778871042000,-305.0837372,0.0001499,2]
[422359702,1778871042000,-1106.42,0.00014998,2]
[422359698,1778871042000,-305.0837372,0.0001499,2]
[422359696,1778871042000,-319.73841152,0.00014986,2]
[422359687,1778871042000,-689.73790928,0.0001497,2]
[422359695,1778871042000,-150.0,0.00014986,2]
[422359694,1778871042000,-289.18740541,0.00014986,2]
[422359692,1778871042000,-274.20162554,0.00014986,2]
[422359690,1778871042000,-287.11416309,0.00014986,2]
[422359691,1778871042000,-275.90606938,0.00014986,2]
[422359689,1778871042000,-150.0,0.00014986,2]
[422359688,1778871042000,-319.73841152,0.00014971,2]
[422359684,1778871042000,-1215.46028509,0.0001497,2]
[422359693,1778871042000,-150.0,0.00014986,2]
[422359777,1778871043000,-431.69745624,0.00014999,2]
[422359776,1778871043000,-500.0,0.00014999,2]
[422359773,1778871043000,-1102.82,0.00014999,2]
[422359768,1778871043000,-1102.82,0.00014999,2]
[422359771,1778871043000,-1102.82,0.00014999,2]
[422359766,1778871043000,-1102.82,0.00014999,2]
[422359770,1778871043000,-1102.82,0.00014999,2]
[422359779,1778871043000,-500.0,0.00014999,2]
[422359781,1778871043000,-500.0,0.00014999,2]
[422359769,1778871043000,-426.17237592,0.00014999,2]
[422359767,1778871043000,-500.0,0.00014999,2]
[422359772,1778871043000,-1102.82,0.00014999,2]
[422359775,1778871043000,-500.0,0.00014999,2]
[422359790,1778871043000,-500.0,0.00014999,2]
[422359782,1778871043000,-500.0,0.00014999,2]
[422359784,1778871043000,-500.0,0.00014999,2]
[422359786,1778871043000,-500.0,0.00014999,2]
[422359788,1778871043000,-500.0,0.00014999,2]
[422359791,1778871043000,-746.33,0.00014999,2]
[422359792,1778871043000,-746.33,0.00014999,2]
[422359797,1778871043000,-746.33,0.00014999,2]
[422359793,1778871043000,-746.33,0.00014999,2]
[422359796,1778871043000,-746.33,0.00014999,2]
[422359794,1778871043000,-746.33,0.00014999,2]
[422359795,1778871043000,-746.33,0.00014999,2]
[422359798,1778871043000,-746.33,0.00014999,2]
[422359764,1778871043000,-1102.82,0.00014999,2]
[422359774,1778871043000,-1102.84987748,0.00014999,2]
[422359761,1778871043000,-500.0,0.00014999,2]
[422359752,1778871043000,-1102.82,0.00014999,2]
[422359763,1778871043000,-500.0,0.00014999,2]
[422359734,1778871043000,-1106.42,0.00014999,2]
[422359736,1778871043000,-1106.42,0.00014999,2]
[422359799,1778871043000,-746.33,0.00014999,2]
[422359741,1778871043000,-1106.42,0.00014999,2]
[422359735,1778871043000,-1106.42,0.00014999,2]
[422359740,1778871043000,-1106.42,0.00014999,2]
[422359737,1778871043000,-1106.42,0.00014999,2]
[422359739,1778871043000,-1106.42,0.00014999,2]
[422359742,1778871043000,-1106.42,0.00014999,2]
[422359744,1778871043000,-1106.42,0.00014999,2]
[422359753,1778871043000,-500.0,0.00014999,2]
[422359754,1778871043000,-1102.82,0.00014999,2]
[422359746,1778871043000,-1106.42,0.00014999,2]
[422359745,1778871043000,-1106.42,0.00014999,2]
[422359747,1778871043000,-1106.46461365,0.00014999,2]
[422359743,1778871043000,-1106.42,0.00014999,2]
[422359751,1778871043000,-1102.82,0.00014999,2]
[422359748,1778871043000,-1102.82,0.00014999,2]
[422359750,1778871043000,-1102.82,0.00014999,2]
[422359749,1778871043000,-1102.82,0.00014999,2]
[422359755,1778871043000,-500.0,0.00014999,2]
[422359757,1778871043000,-500.0,0.00014999,2]
[422359759,1778871043000,-500.0,0.00014999,2]
[422359758,1778871043000,-1102.82,0.00014999,2]
[422359756,1778871043000,-1102.82,0.00014999,2]
[422359760,1778871043000,-1102.82,0.00014999,2]
[422359765,1778871043000,-500.0,0.00014999,2]
[422359762,1778871043000,-1102.82,0.00014999,2]
[422359802,1778871043000,-549.88,0.00014999,2]
[422359738,1778871043000,-1106.42,0.00014999,2]
[422359800,1778871043000,-549.88,0.00014999,2]
[422359829,1778871043000,-500.0,0.00014999,2]
[422359836,1778871043000,-500.0,0.00014999,2]
[422359839,1778871043000,-500.0,0.00014999,2]
[422359842,1778871043000,-500.0,0.00014999,2]
[422359840,1778871043000,-500.0,0.00014999,2]
[422359846,1778871043000,-500.0,0.00014999,2]
[422359838,1778871043000,-500.0,0.00014999,2]
[422359847,1778871043000,-500.0,0.00014999,2]
[422359837,1778871043000,-500.0,0.00014999,2]
[422359841,1778871043000,-500.0,0.00014999,2]
[422359843,1778871043000,-500.0,0.00014999,2]
[422359844,1778871043000,-500.0,0.00014999,2]
[422359849,1778871043000,-500.0,0.00014999,2]
[422359860,1778871043000,-500.0,0.00014999,2]
[422359859,1778871043000,-500.0,0.00014999,2]
[422359861,1778871043000,-500.0,0.00014999,2]
[422359848,1778871043000,-500.0,0.00014999,2]
[422359850,1778871043000,-500.0,0.00014999,2]
[422359852,1778871043000,-500.0,0.00014999,2]
[422359854,1778871043000,-500.0,0.00014999,2]
[422359855,1778871043000,-500.0,0.00014999,2]
[422359857,1778871043000,-500.0,0.00014999,2]
[422359858,1778871043000,-500.0,0.00014999,2]
[422359856,1778871043000,-500.0,0.00014999,2]
[422359862,1778871043000,-500.0,0.00014999,2]
[422359863,1778871043000,-500.0,0.00014999,2]
[422359801,1778871043000,-746.33,0.00014999,2]
[422359832,1778871043000,-500.0,0.00014999,2]
[422359830,1778871043000,-500.0,0.00014999,2]
[422359845,1778871043000,-500.0,0.00014999,2]